bitfinex/quotes_BTCUSD_20240901
["timestamp","ask_amount","ask_price","bid_price","bid_amount"]
[1725190018917,0.1,58227.0,58225.0,0.0707]
[1725190019125,0.482816,58226.0,58225.0,0.0707]
[1725190019359,0.217907,58226.0,58225.0,0.0847]
[1725190019578,0.317907,58226.0,58225.0,0.0847]
[1725190019797,0.34485994,58226.0,58225.0,0.0847]
[1725190020021,0.12695294,58226.0,58225.0,0.08813]
[1725190020478,0.12695294,58226.0,58225.0,0.10213]
[1725190020693,0.02695294,58226.0,58225.0,0.08813]
[1725190021390,0.56993194,58226.0,58225.0,0.08813]
[1725190021612,0.68141194,58226.0,58225.0,0.08813]
[1725190021846,0.57644394,58226.0,58225.0,0.08813]
[1725190022078,0.57644394,58226.0,58224.0,0.0896]
[1725190022079,0.43644394,58226.0,58224.0,0.0896]
[1725190022339,0.658549,58225.0,58224.0,0.0896]
[1725190022563,0.51088,58225.0,58224.0,0.0896]
[1725190022795,0.11648,58225.0,58224.0,0.10551]
[1725190023008,0.12695294,58226.0,58224.0,0.10551]
[1725190023426,0.02695294,58226.0,58225.0,0.0695]
[1725190023653,0.02695294,58226.0,58225.0,0.088401]
[1725190025608,0.02695294,58226.0,58225.0,0.102401]
[1725190025859,0.17919994,58226.0,58225.0,0.102401]
[1725190026119,0.75012594,58226.0,58225.0,0.0835]
[1725190026346,0.58275394,58226.0,58225.0,0.0835]
[1725190026552,0.57265394,58226.0,58225.0,0.0835]
[1725190026771,0.57347094,58226.0,58225.0,0.0835]
[1725190026975,0.57347094,58226.0,58225.0,0.10081]
[1725190027600,0.39485294,58226.0,58225.0,0.10081]
[1725190030812,0.12776994,58226.0,58225.0,0.10081]
[1725190031013,0.02776994,58226.0,58225.0,0.10081]
[1725190031266,0.12776994,58226.0,58225.0,0.10081]
[1725190031690,0.57987394,58226.0,58225.0,0.10081]
[1725190032100,0.55803994,58226.0,58225.0,0.10081]
[1725190032546,0.12776994,58226.0,58225.0,0.10081]
[1725190032739,0.25936294,58226.0,58225.0,0.10081]
[1725190032947,0.35936294,58226.0,58225.0,0.10081]
[1725190033161,0.30836294,58226.0,58225.0,0.10081]
[1725190033382,0.12776994,58226.0,58225.0,0.10081]
[1725190034248,0.02776994,58226.0,58225.0,0.10081]
[1725190039817,0.02776994,58226.0,58225.0,0.19001]
[1725190051978,0.02606994,58226.0,58225.0,0.19001]
[1725190062116,0.02606994,58226.0,58225.0,0.1909087]
[1725190072808,0.005,58250.0,58225.0,0.1909087]
[1725190073011,0.0269516,58226.0,58225.0,0.1735987]
[1725190073232,0.005,58250.0,58225.0,0.1735987]
[1725190073444,3.278117,58246.0,58225.0,0.1735987]
[1725190073651,0.02695158,58226.0,58225.0,0.1735987]
[1725190073870,0.000817,58226.0,58225.0,0.1735987]
[1725190074095,0.000817,58226.0,58225.0,0.03245857]
[1725190074318,0.000817,58226.0,58225.0,0.0148987]
[1725190077549,0.02776795,58226.0,58225.0,0.0148987]
[1725190080328,0.000817,58226.0,58225.0,0.0148987]
[1725190082965,0.01306213,58252.0,58229.0,0.01]
[1725190083152,0.01306213,58252.0,58225.0,0.1656987]
[1725190083153,0.50540786,58249.0,58231.0,0.0702]
[1725190083397,3.278117,58248.0,58231.0,0.0702]
[1725190083613,0.02694978,58247.0,58231.0,0.0702]
[1725190084016,2.076627,58246.0,58231.0,0.0702]
[1725190084259,2.177108,58246.0,58231.0,0.0702]
[1725190084477,2.177108,58246.0,58231.0,0.0712]
[1725190084698,2.060474,58245.0,58231.0,0.0702]
[1725190084945,0.02694978,58247.0,58231.0,0.0702]
[1725190084946,0.1,58244.0,58231.0,0.0702]
[1725190085424,2.196656,58243.0,58231.0,0.0702]
[1725190085662,0.02695062,58241.0,58231.0,0.0702]
[1725190086062,1.091095,58240.0,58231.0,0.0702]
[1725190086309,0.1,58239.0,58231.0,0.0702]
[1725190086524,1.112683,58238.0,58231.0,0.0702]
[1725190086699,0.1,58237.0,58231.0,0.0702]
[1725190086905,0.995705,58236.0,58231.0,0.0702]
[1725190087122,0.1,58235.0,58231.0,0.0702]
[1725190087365,0.966603,58234.0,58231.0,0.0702]
[1725190087544,0.1,58233.0,58232.0,0.0806]
[1725190087699,0.666121,58233.0,58232.0,0.0806]
[1725190087899,0.696027,58233.0,58232.0,0.0806]
[1725190089659,0.72297704,58233.0,58232.0,0.0806]
[1725190089930,0.66873904,58233.0,58232.0,0.0806]
[1725190090516,0.66873904,58233.0,58232.0,0.0896]
[1725190090698,0.66873904,58233.0,58232.0,0.10658]
[1725190092565,0.641789,58233.0,58232.0,0.10658]
[1725190093021,0.1,58233.0,58232.0,0.10658]
[1725190093236,0.273676,58233.0,58232.0,0.10658]
[1725190093450,0.1,58233.0,58232.0,0.10658]
[1725190093662,0.6849,58252.0,58232.0,0.10658]
[1725190093663,3.255181,58250.0,58232.0,0.10658]
[1725190093923,3.255181,58250.0,58233.0,0.018678]
[1725190093924,3.143562,58249.0,58233.0,0.018678]
[1725190094137,0.1,58248.0,58233.0,0.018678]
[1725190094362,3.07848,58247.0,58233.0,0.018678]
[1725190094570,0.1,58246.0,58233.0,0.018678]
[1725190094797,2.976935,58246.0,58234.0,0.0179478]
[1725190095014,0.1,58246.0,58234.0,0.0179478]
[1725190095240,2.824336,58245.0,58234.0,0.0179478]
[1725190095480,0.1,58246.0,58234.0,0.0179478]
[1725190095481,2.80724,58244.0,58234.0,0.0179478]
[1725190095703,2.113568,58243.0,58235.0,0.01797478]
[1725190095918,1.615963,58242.0,58235.0,0.01797478]
[1725190096136,0.1,58241.0,58236.0,0.01095748]
[1725190096586,0.1,58241.0,58237.0,0.0655]
[1725190096814,0.6849,58252.0,58239.0,0.0655]
[1725190097036,1.277905,58251.0,58240.0,0.01710575]
[1725190097257,0.001,58248.0,58240.0,0.01710575]
[1725190097480,2.373922,58247.0,58240.0,0.01710575]
[1725190097766,2.373922,58247.0,58239.0,0.0755]
[1725190097767,2.2887,58247.0,58239.0,0.0705]
[1725190097997,2.250236,58246.0,58239.0,0.0705]
[1725190098215,2.168645,58245.0,58239.0,0.0655]
[1725190098441,2.168645,58245.0,58240.0,0.001]
[1725190098442,0.830812,58244.0,58240.0,0.001]
[1725190098673,0.807732,58243.0,58239.0,0.0755]
[1725190098902,0.1,58243.0,58240.0,0.01720575]
[1725190099143,0.1,58243.0,58239.0,0.0755]
[1725190099144,0.1,58243.0,58241.0,0.01773057]
[1725190099806,0.02694649,58244.0,58241.0,0.01773057]
[1725190100252,0.02694649,58244.0,58241.0,0.02773057]
[1725190100439,0.02694649,58244.0,58242.0,0.0709]
[1725190100680,0.02694649,58244.0,58243.0,0.09566306]
[1725190101132,0.02794649,58244.0,58243.0,0.08266306]
[1725190101353,0.02694649,58244.0,58243.0,0.08266306]
[1725190101801,0.001,58244.0,58243.0,0.08266306]
[1725190102263,0.003,58244.0,58243.0,0.08266306]
[1725190102965,0.003,58244.0,58243.0,0.09901937]
[1725190104477,0.685717,58252.0,58243.0,0.09901937]
[1725190104478,0.49710245,58252.0,58243.0,0.09901937]
[1725190104700,1.301357,58251.0,58243.0,0.09901937]
[1725190104927,1.074812,58250.0,58243.0,0.09901937]
[1725190105153,0.19914802,58251.0,58245.0,0.0709]
[1725190105432,0.19914802,58251.0,58240.0,0.002]
[1725190105433,0.02694502,58251.0,58247.0,0.0709]
[1725190105654,0.000817,58252.0,58248.0,0.01667]
[1725190105891,0.267103,58251.0,58248.0,0.01667]
[1725190106812,0.1,58250.0,58248.0,0.01667]
[1725190107240,0.000817,58252.0,58248.0,0.01667]
[1725190107457,0.000817,58252.0,58249.0,0.018337]
[1725190107458,0.340774,58251.0,58249.0,0.018337]
[1725190107676,0.1,58250.0,58249.0,0.018337]
[1725190108139,0.09994859,58250.0,58249.0,0.018337]
[1725190108825,0.000817,58252.0,58250.0,0.005]
[1725190109060,0.000817,58252.0,58251.0,0.0685]
[1725190110200,0.12775931,58252.0,58251.0,0.0685]
[1725190110430,0.12775931,58252.0,58251.0,0.0785]
[1725190111125,0.100817,58252.0,58251.0,0.0925]
[1725190111578,0.100817,58252.0,58251.0,0.1055]
[1725190111788,0.100817,58252.0,58251.0,0.11733137]
[1725190112011,0.000817,58252.0,58251.0,0.11733137]
[1725190112231,0.100817,58252.0,58251.0,0.11733137]
[1725190113365,0.000817,58252.0,58251.0,0.11733137]
[1725190113613,0.000817,58252.0,58251.0,0.20313137]
[1725190114313,1.288554,58252.0,58251.0,0.037]
[1725190114552,2.38972068,58252.0,58251.0,0.032]
[1725190114764,1.30165,58252.0,58251.0,0.027]
[1725190115227,1.30165,58252.0,58251.0,0.032]
[1725190115458,0.866691,58252.0,58251.0,0.04252]
[1725190115902,0.866691,58252.0,58251.0,0.04752]
[1725190115903,0.841691,58252.0,58251.0,0.04752]
[1725190116127,0.666636,58252.0,58251.0,0.1052]
[1725190117231,0.69357767,58252.0,58251.0,0.1052]
[1725190117661,0.69357767,58252.0,58251.0,0.1002]
[1725190118122,0.69357767,58252.0,58251.0,0.11072]
[1725190118352,0.69357767,58252.0,58251.0,0.1002]
[1725190118800,0.69357767,58252.0,58251.0,0.1052]
[1725190119021,0.69357767,58252.0,58251.0,0.1538]
[1725190119724,0.69357767,58252.0,58251.0,0.1438]
[1725190119936,0.69357767,58252.0,58251.0,0.15918]
[1725190120150,0.69357767,58252.0,58251.0,0.1438]
[1725190120365,0.69357767,58252.0,58251.0,0.1538]
[1725190120802,0.69357767,58252.0,58251.0,0.1438]
[1725190121029,0.63803767,58252.0,58251.0,0.2346]
[1725190121249,0.595596,58252.0,58251.0,0.25856]
[1725190121472,0.48279,58252.0,58251.0,0.25856]
[1725190121936,0.48279,58252.0,58251.0,0.26356]
[1725190122205,0.100817,58252.0,58251.0,0.26356]
[1725190122439,0.000817,58252.0,58251.0,0.26356]
[1725190123137,0.292125,58252.0,58251.0,0.26356]
[1725190123359,0.192125,58252.0,58251.0,0.26356]
[1725190123579,0.292125,58252.0,58251.0,0.26356]
[1725190123723,0.100817,58252.0,58251.0,0.26356]
[1725190124385,0.12776064,58252.0,58251.0,0.26356]
[1725190124526,0.02776064,58252.0,58251.0,0.26356]
[1725190124741,0.100817,58252.0,58251.0,0.26356]
[1725190125824,0.000817,58252.0,58251.0,0.26356]
[1725190126062,0.01799932,58256.0,58252.0,0.01]
[1725190126291,0.01799932,58256.0,58255.0,0.164]
[1725190128077,0.01799932,58256.0,58255.0,0.176]
[1725190128633,0.01799932,58256.0,58255.0,0.187]
[1725190129045,0.04493979,58256.0,58255.0,0.187]
[1725190133061,0.005,58278.0,58255.0,0.187]
[1725190133062,1.30017948,58280.0,58264.0,0.005]
[1725190133290,0.02693787,58275.0,58264.0,0.005]
[1725190133740,2.928634,58274.0,58264.0,0.005]
[1725190133965,2.643485,58274.0,58264.0,0.005]
[1725190134170,2.643485,58274.0,58266.0,0.005]
[1725190134171,2.621235,58274.0,58266.0,0.005]
[1725190134421,0.02693533,58275.0,58267.0,0.01734]
[1725190134655,2.808919,58274.0,58267.0,0.01734]
[1725190134872,2.761235,58274.0,58267.0,0.01734]
[1725190135093,2.621235,58274.0,58267.0,0.01734]
[1725190135326,2.621235,58274.0,58268.0,0.012244]
[1725190135582,0.1,58273.0,58266.0,0.005]
[1725190135808,2.593009,58272.0,58267.0,0.001]
[1725190136223,1.463351,58271.0,58267.0,0.001]
[1725190136444,1.41758,58270.0,58267.0,0.001]
[1725190136686,0.1,58269.0,58267.0,0.001]
[1725190136909,0.556184,58268.0,58267.0,0.001]
[1725190137124,0.656184,58268.0,58266.0,0.005]
[1725190137347,0.1,58267.0,58266.0,0.005]
[1725190137594,0.1,58267.0,58261.0,0.005]
[1725190137595,0.537724,58267.0,58261.0,0.005]
[1725190137817,0.1,58267.0,58266.0,0.005]
[1725190138487,0.938109,58267.0,58266.0,0.005]
[1725190138726,0.12693614,58267.0,58266.0,0.005]
[1725190139400,0.12693614,58267.0,58261.0,0.01]
[1725190139401,0.12693614,58267.0,58261.0,0.0741]
[1725190139656,0.12693614,58267.0,58259.0,0.005]
[1725190139657,1.804899,58266.0,58259.0,0.005]
[1725190139897,3.278117,58265.0,58254.0,0.0741]
[1725190140119,0.1,58264.0,58254.0,0.0741]
[1725190140348,2.063275,58263.0,58254.0,0.0741]
[1725190140578,0.1,58262.0,58261.0,0.001]
[1725190140808,2.367713,58262.0,58261.0,0.001]
[1725190141062,2.39633678,58262.0,58254.0,0.0741]
[1725190141312,0.862834,58261.0,58254.0,0.0741]
[1725190141542,0.862834,58261.0,58254.0,0.0801]
[1725190141792,0.1,58260.0,58254.0,0.0781]
[1725190142010,1.323175,58259.0,58254.0,0.0781]
[1725190142236,1.028899,58259.0,58258.0,0.1732]
[1725190142468,0.1,58260.0,58259.0,0.0841]
[1725190142700,0.612743,58260.0,58259.0,0.0841]
[1725190142936,0.43013,58260.0,58259.0,0.0841]
[1725190143160,0.43013,58260.0,58259.0,0.10142]
[1725190144141,0.43013,58260.0,58259.0,0.09142]
[1725190144600,0.45706798,58260.0,58259.0,0.0801]
[1725190144854,0.45706798,58260.0,58259.0,0.0881]
[1725190146239,0.43013,58260.0,58259.0,0.0881]
[1725190147119,0.43013,58260.0,58259.0,0.0831]
[1725190147365,0.43013,58260.0,58259.0,0.0881]
[1725190147580,0.43013,58260.0,58259.0,0.0831]
[1725190148956,0.1,58260.0,58259.0,0.0831]
[1725190149205,3.378117,58268.0,58259.0,0.0831]
[1725190149459,3.278117,58267.0,58259.0,0.014]
[1725190149696,0.1,58266.0,58259.0,0.014]
[1725190149929,2.99088,58265.0,58259.0,0.014]
[1725190150160,0.1,58264.0,58259.0,0.006]
[1725190150401,2.601001,58264.0,58259.0,0.006]
[1725190150652,2.039388,58263.0,58259.0,0.006]
[1725190150879,2.039388,58263.0,58258.0,0.005]
[1725190150880,0.1,58262.0,58258.0,0.005]
[1725190151116,0.1,58262.0,58258.0,0.02163987]
[1725190151117,0.764134,58261.0,58258.0,0.02163987]
[1725190151347,0.555358,58260.0,58259.0,0.0731]
[1725190151696,0.555358,58260.0,58259.0,0.08557399]
[1725190151697,0.1,58260.0,58259.0,0.08557399]
[1725190151906,0.668981,58260.0,58259.0,0.08157399]
[1725190152136,0.668981,58260.0,58259.0,0.07957399]
[1725190153077,0.256308,58260.0,58259.0,0.07957399]
[1725190153324,0.256308,58260.0,58259.0,0.08457399]
[1725190154238,0.256308,58260.0,58259.0,0.09057399]
[1725190154679,0.256308,58260.0,58259.0,0.09857399]
[1725190156083,0.1,58260.0,58259.0,0.17997399]
[1725190156315,0.02693783,58267.0,58259.0,0.17997399]
[1725190156529,0.1,58269.0,58260.0,0.02066139]
[1725190156530,0.957965,58266.0,58260.0,0.02066139]
[1725190156761,0.1,58265.0,58260.0,0.02066139]
[1725190156967,1.221889,58264.0,58262.0,0.005]
[1725190157212,0.1,58263.0,58259.0,0.1645]
[1725190157434,1.693178,58262.0,58259.0,0.0751]
[1725190157651,1.186984,58261.0,58259.0,0.0691]
[1725190157926,1.076347,58260.0,58259.0,0.0701]
[1725190158129,0.53509,58260.0,58259.0,0.0701]
[1725190158353,0.49259,58260.0,58259.0,0.0691]
[1725190158570,0.49259,58260.0,58259.0,0.0721]
[1725190158802,0.49259,58260.0,58259.0,0.0691]
[1725190159039,0.49259,58260.0,58259.0,0.0751]
[1725190159775,0.49259,58260.0,58259.0,0.0801]
[1725190160004,0.49259,58260.0,58259.0,0.011]
[1725190160236,0.49259,58260.0,58259.0,0.006]
[1725190160464,0.49259,58260.0,58259.0,0.0148987]
[1725190163667,3.378117,58260.0,58259.0,0.0148987]
[1725190166380,3.65608432,58260.0,58259.0,0.0148987]
[1725190166605,3.428117,58260.0,58259.0,0.0148987]
[1725190167086,3.4914771,58260.0,58259.0,0.0068987]
[1725190167310,4.2144771,58260.0,58259.0,0.0088987]
[1725190167756,4.2144771,58260.0,58259.0,0.0028987]
[1725190167984,4.35608432,58260.0,58259.0,0.0028987]
[1725190168210,4.20838732,58260.0,58259.0,0.0038987]
[1725190168447,4.20838732,58260.0,58259.0,0.0028987]
[1725190168669,4.20838732,58260.0,58259.0,0.0038987]
[1725190168895,4.20838732,58260.0,58259.0,0.0018987]
[1725190169115,4.20938732,58260.0,58259.0,0.0018987]
[1725190169360,4.20938732,58260.0,58259.0,0.0028987]
[1725190169824,4.20838732,58260.0,58259.0,0.0018987]
[1725190170055,4.21038732,58260.0,58259.0,0.0028987]
[1725190170275,4.22838556,58260.0,58259.0,0.0028987]
[1725190170738,3.52838556,58260.0,58259.0,0.0028987]
[1725190170997,4.22838556,58260.0,58259.0,0.0028987]
[1725190171455,4.35704572,58260.0,58259.0,0.0028987]
[1725190171677,4.39042676,58260.0,58259.0,0.0028987]
[1725190172120,3.95719408,58260.0,58259.0,0.0028987]
[1725190172566,3.95719408,58260.0,58259.0,0.0018987]
[1725190172567,3.95519408,58260.0,58259.0,0.0018987]
[1725190172785,3.95619408,58260.0,58259.0,0.0018987]
[1725190173032,3.95619408,58260.0,58259.0,0.0028987]
[1725190173270,3.95519408,58260.0,58259.0,0.0018987]
[1725190173505,4.12374572,58260.0,58259.0,0.0018987]
[1725190173714,3.95619408,58260.0,58259.0,0.0028987]
[1725190174390,3.93319408,58260.0,58259.0,0.0028987]
[1725190175027,3.95619408,58260.0,58259.0,0.0028987]
[1725190176979,4.00569408,58260.0,58259.0,0.0028987]
[1725190178115,4.03264247,58260.0,58259.0,0.0028987]
[1725190178775,4.00964247,58260.0,58259.0,0.0028987]
[1725190183788,4.17819411,58260.0,58259.0,0.0028987]
[1725190184033,4.20019411,58260.0,58259.0,0.0018987]
[1725190184267,4.21319411,58260.0,58259.0,0.0028987]
[1725190184491,4.21319411,58260.0,58259.0,0.0018987]
[1725190184721,4.22519411,58260.0,58259.0,0.0028987]
[1725190184946,4.05664247,58260.0,58259.0,0.0028987]
[1725190185168,4.02164247,58260.0,58259.0,0.0018987]
[1725190185598,4.02145947,58260.0,58259.0,0.0018987]
[1725190185812,4.03445947,58260.0,58259.0,0.0028987]
[1725190186292,4.03445947,58260.0,58259.0,0.0038987]
[1725190186293,4.04645947,58260.0,58259.0,0.0038987]
[1725190186507,4.03345947,58260.0,58259.0,0.0028987]
[1725190186718,4.04645947,58260.0,58259.0,0.0038987]
[1725190187147,4.03345947,58260.0,58259.0,0.0028987]
[1725190187578,4.02245947,58260.0,58259.0,0.0018987]
[1725190188464,3.97295947,58260.0,58259.0,0.0018987]
[1725190188678,3.95995947,58260.0,58259.0,0.0008987]
[1725190189112,3.98495947,58260.0,58259.0,0.0028987]
[1725190189320,3.97295947,58260.0,58259.0,0.0018987]
[1725190189535,3.97195947,58260.0,58259.0,0.0018987]
[1725190189740,3.97195947,58260.0,58259.0,0.0028987]
[1725190189960,3.98495947,58260.0,58259.0,0.0028987]
[1725190191105,3.97295947,58260.0,58259.0,0.0018987]
[1725190191322,4.16625947,58260.0,58259.0,0.0028987]
[1725190191547,3.98495947,58260.0,58259.0,0.0028987]
[1725190191768,3.98495947,58260.0,58259.0,0.0018987]
[1725190192008,3.99695947,58260.0,58259.0,0.0028987]
[1725190196906,0.86653947,58260.0,58259.0,0.0028987]
[1725190197118,3.29695947,58260.0,58259.0,0.0028987]
[1725190199965,3.99695947,58260.0,58259.0,0.0028987]
[1725190203753,4.03034051,58260.0,58259.0,0.0028987]
[1725190204662,3.99695947,58260.0,58259.0,0.0028987]
[1725190210013,0.88953947,58260.0,58259.0,0.0028987]
[1725190210245,4.01995947,58260.0,58259.0,0.0028987]
[1725190210476,4.01017108,58260.0,58259.0,0.0028987]
[1725190211453,4.17872272,58260.0,58259.0,0.0028987]
[1725190211682,4.17872272,58260.0,58251.0,0.03529932]
[1725190211683,0.85,58252.0,58251.0,0.03529932]
[1725190211911,1.335,58252.0,58251.0,0.03529932]
[1725190212375,4.48341791,58252.0,58251.0,0.03529932]
[1725190212832,5.18341791,58252.0,58251.0,0.03529932]
[1725190213072,5.19541791,58252.0,58251.0,0.03629932]
[1725190213645,5.26114967,58252.0,58251.0,0.03629932]
[1725190214128,5.27114967,58252.0,58251.0,0.03729932]
[1725190215696,5.28830967,58252.0,58251.0,0.03729932]
[1725190216092,5.24952798,58252.0,58251.0,0.03729932]
[1725190221285,5.22257791,58252.0,58251.0,0.03729932]
[1725190221941,5.22257791,58252.0,58251.0,0.09929932]
[1725190222648,5.22339591,58252.0,58251.0,0.09929932]
[1725190224725,5.22339591,58252.0,58251.0,0.03729932]
[1725190225396,5.39194755,58252.0,58251.0,0.03729932]
[1725190225836,5.41889747,58252.0,58251.0,0.03729932]
[1725190228570,5.41889747,58252.0,58214.0,0.002]
[1725190228571,0.35,58240.0,58221.0,0.005]
[1725190228796,1.457,58240.0,58221.0,0.005]
[1725190229147,1.457,58240.0,58239.0,0.1448987]
[1725190229301,1.5019513,58240.0,58239.0,0.1448987]
[1725190229774,5.3323713,58240.0,58239.0,0.1448987]
[1725190230232,5.37115299,58240.0,58239.0,0.1448987]
[1725190230468,4.67115299,58240.0,58239.0,0.1448987]
[1725190230691,4.68015299,58240.0,58239.0,0.1458987]
[1725190231165,1.52278032,58240.0,58239.0,0.1458987]
[1725190231898,1.52878032,58240.0,58239.0,0.1458987]
[1725190232128,1.48999863,58240.0,58239.0,0.1458987]
[1725190232359,1.99436863,58240.0,58239.0,0.1458987]
[1725190232622,1.99436863,58240.0,58239.0,0.1508987]
[1725190232623,0.331356,58240.0,58239.0,0.1508987]
[1725190233339,0.177005,58240.0,58239.0,0.1508987]
[1725190233582,0.450143,58240.0,58239.0,0.0058987]
[1725190233802,0.000818,58252.0,58239.0,0.0078987]
[1725190233803,1.748881,58251.0,58239.0,0.0078987]
[1725190234020,1.690586,58251.0,58239.0,0.0078987]
[1725190234256,1.690586,58251.0,58241.0,0.0783]
[1725190234257,1.550586,58251.0,58241.0,0.0783]
[1725190234490,1.550586,58251.0,58239.0,0.0038987]
[1725190234491,1.339921,58251.0,58243.0,0.0783]
[1725190234713,1.035143,58250.0,58243.0,0.0783]
[1725190234937,1.130308,58251.0,58243.0,0.0783]
[1725190235157,0.1,58250.0,58244.0,0.00875199]
[1725190235372,0.805906,58249.0,58245.0,0.0783]
[1725190235653,0.000818,58252.0,58251.0,0.01]
[1725190235890,0.000818,58252.0,58251.0,0.0883]
[1725190236379,0.02775897,58252.0,58251.0,0.0803]
[1725190236613,0.22342897,58252.0,58251.0,0.0803]
[1725190236916,0.22342897,58252.0,58251.0,0.0753]
[1725190236917,0.71674697,58252.0,58251.0,0.0753]
[1725190237084,0.69703197,58252.0,58251.0,0.0763]
[1725190237301,0.35105197,58252.0,58251.0,0.142]
[1725190238259,0.31237597,58252.0,58251.0,0.156]
[1725190238772,0.12875897,58252.0,58251.0,0.1716]
[1725190239010,0.12875897,58252.0,58251.0,0.1946]
[1725190239011,0.21765897,58252.0,58251.0,0.1946]
[1725190239235,0.43007997,58252.0,58251.0,0.1946]
[1725190239476,0.48045597,58252.0,58251.0,0.1946]
[1725190240357,0.48045597,58252.0,58251.0,0.1966]
[1725190240566,0.42095797,58252.0,58251.0,0.1966]
[1725190241032,0.380217,58252.0,58251.0,0.1966]
[1725190241249,0.298618,58252.0,58251.0,0.1966]
[1725190242175,0.298518,58252.0,58251.0,0.1966]
[1725190244998,0.628518,58252.0,58251.0,0.156]
[1725190245217,0.905345,58252.0,58251.0,0.156]
[1725190245423,0.876125,58252.0,58251.0,0.156]
[1725190245647,0.90306598,58252.0,58251.0,0.156]
[1725190246511,0.85582598,58252.0,58251.0,0.156]
[1725190248253,0.85582598,58252.0,58251.0,0.142]
[1725190248883,0.85682598,58252.0,58251.0,0.149]
[1725190249309,0.85582598,58252.0,58251.0,0.142]
[1725190249546,0.5742733,58252.0,58251.0,0.1572]
[1725190249737,0.000817,58260.0,58251.0,0.1572]
[1725190249738,2.469912,58259.0,58251.0,0.1562]
[1725190249979,2.469912,58258.0,58251.0,0.1612]
[1725190250198,2.102518,58257.0,58251.0,0.1612]
[1725190250449,2.469912,58256.0,58252.0,0.01612]
[1725190250665,2.469912,58255.0,58252.0,0.01612]
[1725190250812,1.646786,58254.0,58252.0,0.01612]
[1725190251048,1.603882,58253.0,58252.0,0.01612]
[1725190251217,2.015312,58253.0,58252.0,0.01512]
[1725190251428,1.723882,58253.0,58252.0,0.01512]
[1725190251625,1.823882,58253.0,58252.0,0.01512]
[1725190252754,1.823882,58253.0,58252.0,0.16272]
[1725190252755,0.30509,58253.0,58252.0,0.16272]
[1725190253127,0.30609,58253.0,58252.0,0.1586]
[1725190253821,0.18467683,58253.0,58252.0,0.1686]
[1725190254774,0.08467683,58253.0,58252.0,0.1686]
[1725190254989,0.11161891,58253.0,58252.0,0.1686]
[1725190255709,0.21161891,58253.0,58252.0,0.1686]
[1725190255950,0.21161891,58253.0,58252.0,0.18546]
[1725190256762,0.28082608,58253.0,58252.0,0.18546]
[1725190257918,0.28081108,58253.0,58252.0,0.18546]
[1725190259060,0.23937108,58253.0,58252.0,0.18546]
[1725190259526,0.12876008,58253.0,58252.0,0.18546]
[1725190259967,0.02876008,58253.0,58252.0,0.18546]
[1725190261167,0.001818,58253.0,58252.0,0.18546]
[1725190262836,0.001818,58253.0,58252.0,0.1686]
[1725190263204,0.001818,58253.0,58252.0,0.1706]
[1725190264136,0.28602,58253.0,58252.0,0.1706]
[1725190264777,0.28602,58253.0,58252.0,0.1686]
[1725190265710,0.31296056,58253.0,58252.0,0.1686]
[1725190265950,0.31296056,58253.0,58252.0,0.18574998]
[1725190266184,0.31296056,58253.0,58252.0,0.1039]
[1725190269592,0.31296056,58253.0,58252.0,0.021]
[1725190271157,0.28602,58253.0,58252.0,0.021]
[1725190271610,0.28602,58253.0,58252.0,0.0218998]
[1725190274463,0.35012,58253.0,58252.0,0.0218998]
[1725190274727,0.53268757,58253.0,58252.0,0.0218998]
[1725190274934,0.53768757,58253.0,58252.0,0.0218998]
[1725190275181,0.53768757,58253.0,58252.0,0.0108998]
[1725190275182,0.45946272,58253.0,58252.0,0.0108998]
[1725190275717,0.46946272,58253.0,58252.0,0.0118998]
[1725190276161,0.46946272,58253.0,58252.0,0.0108998]
[1725190276607,0.46946272,58253.0,58252.0,0.0008998]
[1725190276839,0.47446272,58253.0,58252.0,0.0018998]
[1725190277326,0.47446272,58253.0,58252.0,0.0008998]
[1725190277547,0.48246272,58253.0,58252.0,0.0018998]
[1725190278020,0.48246272,58253.0,58252.0,0.0008998]
[1725190278021,0.47446272,58253.0,58252.0,0.0008998]
[1725190278255,0.48946272,58253.0,58252.0,0.0028998]
[1725190278494,1.18446272,58253.0,58252.0,0.0028998]
[1725190279174,1.25939868,58253.0,58252.0,0.0028998]
[1725190280097,1.27339868,58253.0,58252.0,0.0038998]
[1725190280538,1.27339868,58253.0,58252.0,0.0028998]
[1725190280539,1.26439868,58253.0,58252.0,0.0028998]
[1725190280761,1.25239868,58253.0,58252.0,0.0018998]
[1725190282116,1.20046272,58253.0,58252.0,0.0018998]
[1725190284350,1.01626072,58253.0,58252.0,0.0018998]
[1725190284773,2.66475972,58253.0,58252.0,0.0018998]
[1725190285678,2.85295272,58253.0,58252.0,0.0018998]
[1725190287932,3.55295272,58253.0,58252.0,0.0018998]
[1725190294858,2.85295272,58253.0,58252.0,0.0018998]
[1725190296580,2.67165272,58253.0,58252.0,0.0018998]
[1725190296804,2.84020436,58253.0,58252.0,0.0018998]
[1725190297265,3.02150436,58253.0,58252.0,0.0018998]
[1725190297704,3.72150436,58253.0,58252.0,0.0018998]
[1725190299503,3.71350436,58253.0,58252.0,0.0008998]
[1725190299728,3.72750436,58253.0,58252.0,0.0018998]
[1725190299952,3.74150436,58253.0,58252.0,0.0018998]
[1725190300611,3.72750436,58253.0,58252.0,0.0018998]
[1725190300830,3.44080265,58253.0,58252.0,0.0018998]
[1725190301069,3.45480265,58253.0,58252.0,0.0028998]
[1725190301297,3.48175761,58253.0,58252.0,0.0028998]
[1725190302177,3.46775761,58253.0,58252.0,0.0018998]
[1725190302345,3.48175761,58253.0,58252.0,0.0028998]
[1725190302605,3.46775761,58253.0,58252.0,0.0018998]
[1725190302797,3.48175761,58253.0,58252.0,0.0028998]
[1725190303121,3.58175761,58253.0,58252.0,0.0018998]
[1725190303506,3.59575761,58253.0,58252.0,0.0028998]
[1725190303923,3.73265761,58253.0,58252.0,0.0028998]
[1725190304127,3.73239734,58253.0,58252.0,0.0028998]
[1725190307461,3.54206496,58253.0,58252.0,0.0028998]
[1725190307682,3.47516496,58253.0,58252.0,0.0028998]
[1725190308967,3.47516496,58253.0,58252.0,0.0018998]